bitfinex-derivatives/quotes_ETHF0:USTF0_20260310
["timestamp","ask_amount","ask_price","bid_price","bid_amount"]
[1773129045640,1.48583134,2053.2,2052.2,1.38339439]
[1773129053150,1.48583134,2053.2,2052.3,1.4406435]
[1773129054050,1.48583134,2053.2,2052.5,1.4406435]
[1773129054348,1.50335873,2053.7,2052.8,1.4406435]
[1773129054550,1.50335873,2053.9,2053.0,1.4406435]
[1773129055653,4.06435284,2054.5,2053.1,1.4406435]
[1773129055953,1.50335873,2054.5,2053.4,1.4406435]
[1773129056150,1.50335873,2054.5,2053.5,1.4406435]
[1773129056741,1.50335873,2054.5,2053.5,1.44689348]
[1773129056742,1.50902082,2054.5,2053.5,1.44689348]
[1773129059048,1.50902082,2054.5,2053.5,0.00624998]
[1773129059243,1.50902082,2054.5,2053.5,1.44689348]
[1773129059746,1.50335873,2055.1,2053.7,1.4406435]
[1773129060852,1.50900879,2055.1,2053.7,1.4406435]
[1773129063564,1.4848953,2054.7,2053.5,1.44689348]
[1773129065365,1.4848953,2054.5,2053.5,0.00624998]
[1773129065769,1.4848953,2054.5,2053.5,1.49321204]
[1773129066367,1.4848953,2054.5,2053.1,1.48696206]
[1773129066765,1.4848953,2054.3,2053.1,1.48696206]
[1773129066960,1.4848953,2054.2,2053.1,1.48696206]
[1773129067369,1.4848953,2054.2,2052.6,1.48696206]
[1773129067565,1.4848953,2054.2,2052.6,1.49145925]
[1773129068267,1.4848953,2054.0,2052.6,1.49145925]
[1773129072874,1.4848953,2053.8,2052.6,1.49145925]
[1773129073675,1.4848953,2053.8,2052.6,0.00449719]
[1773129073874,1.4848953,2053.8,2052.6,1.49145925]
[1773129075471,1.4848953,2053.8,2052.0,46.88935782]
[1773129075472,1.4848953,2053.4,2052.0,1.48696206]
[1773129075780,1.4848953,2053.2,2052.0,1.48696206]
[1773129076477,1.49008085,2053.2,2052.0,1.49043539]
[1773129077073,1.4848953,2053.0,2052.0,0.00347333]
[1773129077281,1.4848953,2053.0,2052.0,1.49043539]
[1773129079380,1.4848953,2053.0,2052.0,0.00347333]
[1773129079976,1.4848953,2052.8,2052.0,0.00347333]
[1773129080375,1.4848953,2052.8,2051.6,1.48696206]
[1773129081377,1.4848953,2052.8,2051.6,1.49182943]
[1773129082076,1.4848953,2052.6,2051.6,1.49182943]
[1773129083382,1.4848953,2052.6,2051.6,0.00486737]
[1773129083576,1.4848953,2052.6,2051.6,1.49182943]
[1773129083882,1.4848953,2052.6,2051.6,0.00486737]
[1773129084077,1.4848953,2052.4,2051.6,0.00486737]
[1773129085377,1.4848953,2052.2,2051.0,1.48696206]
[1773129086384,1.4848953,2052.2,2051.0,1.49080267]
[1773129092490,1.4848953,2052.2,2051.2,1.48696206]
[1773129092687,0.24356,2052.8,2051.2,1.48696206]
[1773129092688,1.4848953,2052.7,2051.3,0.24373]
[1773129092992,1.4848953,2052.7,2051.4,1.48696206]
[1773129094688,1.4848953,2052.7,2051.5,1.65114687]
[1773129095594,1.45531409,2053.1,2051.8,1.40743687]
[1773129095794,1.45531409,2053.1,2052.0,1.40743687]
[1773129107598,1.45531409,2053.1,2052.2,1.40743687]
[1773129107903,1.46049964,2053.2,2052.2,1.40743687]
[1773129118007,1.41264018,2053.0,2051.8,6.08935782]
[1773129118204,1.41264018,2053.0,2051.9,7.50644258]
[1773129118409,1.41264018,2053.0,2052.0,1.41708476]
[1773129119613,1.41264018,2053.1,2052.1,1.41708476]
[1773129122214,1.41264018,2053.1,2052.1,7.50644258]
[1773129122512,1.41264018,2053.1,2052.2,1.41708476]
[1773129125018,1.41264018,2053.1,2052.3,1.47268334]
[1773129127719,1.41264018,2053.1,2052.4,1.47268334]
[1773129127918,1.41264018,2053.1,2052.3,1.47268334]
[1773129134128,1.48397833,2052.9,2052.3,1.47268334]
[1773129134329,1.48397833,2052.5,2052.0,7.56204116]
[1773129134527,1.48397833,2052.5,2052.1,1.47268334]
[1773129134925,1.48397833,2052.5,2052.0,1.47268334]
[1773129135432,1.48397833,2052.5,2051.9,6.08935782]
[1773129135624,1.48397833,2052.5,2051.9,1.47268334]
[1773129135830,1.48397833,2052.5,2052.0,1.47268334]
[1773129137636,1.48397833,2052.5,2051.8,1.47268334]
[1773129155548,1.48397833,2052.5,2051.9,1.37407766]
[1773129157247,1.3674867,2052.1,2051.5,7.46343548]
[1773129157546,1.3674867,2052.4,2051.8,3.27332563]
[1773129157751,1.3674867,2052.4,2051.9,1.37407766]
[1773129159151,1.3674867,2052.7,2052.1,1.37407766]
[1773129167056,1.3674867,2052.7,2052.3,1.37407766]
[1773129167753,1.3674867,2052.9,2052.3,1.37407766]
[1773129167954,1.3674867,2052.9,2052.5,1.37407766]
[1773129168156,13.73769088,2053.2,2052.6,1.48549516]
[1773129168157,1.3674867,2053.0,2052.6,1.48549516]
[1773129168454,1.3674867,2053.0,2052.5,1.49024507]
[1773129172250,1.3674867,2053.0,2052.5,0.00474991]
[1773129175760,1.3674867,2053.0,2052.2,1.48549516]
[1773129176063,1.3674867,2053.0,2052.1,6.08935782]
[1773129176064,1.405582,2052.8,2052.0,7.57485298]
[1773129176258,1.405582,2052.8,2052.0,1.48549516]
[1773129176965,1.405582,2052.8,2052.0,1.49175659]
[1773129180068,1.405582,2053.0,2052.1,1.48549516]
[1773129181464,1.405582,2052.8,2052.0,1.49175659]
[1773129181670,1.405582,2052.8,2052.0,0.00626143]
[1773129182670,1.405582,2052.8,2052.0,1.49175659]
[1773129184169,1.405582,2052.8,2052.0,0.00626143]
[1773129184367,1.40990386,2052.6,2052.0,0.00626143]
[1773129186669,1.40990386,2052.6,2051.7,1.3537186]
[1773129187674,1.40990386,2052.6,2051.7,1.35725097]
[1773129187973,1.40990386,2052.3,2051.7,0.00353237]
[1773129192379,1.40990386,2052.2,2051.4,1.3537186]
[1773129192573,1.40990386,2052.1,2051.4,1.3537186]
[1773129192778,1.40990386,2052.1,2051.2,1.3537186]
[1773129193174,7.653,2052.2,2051.4,1.3537186]
[1773129193379,1.40990386,2052.3,2051.6,1.3537186]
[1773129201888,1.40990386,2052.3,2051.5,1.3537186]
[1773129204489,1.40990386,2052.3,2051.5,7.44307642]
[1773129204689,1.40990386,2052.3,2051.6,1.3537186]
[1773129205088,1.40990386,2052.3,2051.7,1.3537186]
[1773129206094,1.40990386,2052.3,2051.6,1.3537186]
[1773129206891,1.40990386,2052.3,2051.5,7.44307642]
[1773129207084,1.40990386,2052.3,2051.4,6.08935782]
[1773129207490,1.40990386,2052.3,2051.4,1.3537186]
[1773129210392,1.40990386,2052.2,2051.3,7.44307642]
[1773129210593,1.40990386,2052.2,2051.3,1.3537186]
[1773129213595,1.65353386,2052.2,2051.3,1.3537186]
[1773129215705,1.39712074,2051.9,2051.2,0.00386312]
[1773129216002,1.39712074,2051.9,2051.2,1.46413729]
[1773129216205,1.39712074,2051.6,2050.9,7.54963199]
[1773129216407,1.39712074,2051.6,2050.9,1.46027417]
[1773129216904,1.39712074,2051.6,2050.8,1.46027417]
[1773129217206,1.39712074,2051.5,2050.8,0.00556705]
[1773129219703,1.39712074,2051.5,2050.8,1.46584122]
[1773129220102,1.39712074,2051.5,2050.8,0.00556705]
[1773129220297,1.39712074,2051.5,2050.6,1.46027417]
[1773129220298,1.39712074,2051.2,2050.5,1.46027417]
[1773129220502,1.39712074,2051.2,2050.3,1.46027417]
[1773129220698,1.39712074,2051.0,2050.3,1.46027417]
[1773129221298,1.39712074,2051.0,2050.3,0.00438338]
[1773129221507,2.14223809,2051.4,2049.8,7.58725752]
[1773129221508,1.39712074,2050.7,2049.9,1.46027417]
[1773129222401,1.39712074,2050.7,2049.9,1.4644024]
[1773129222610,1.39712074,2050.8,2049.9,1.4644024]
[1773129231312,1.35654775,2050.6,2049.7,1.43475011]
[1773129232116,1.35654775,2050.6,2049.7,1.43831013]
[1773129235622,1.35654775,2050.5,2049.7,1.43831013]
[1773129236122,1.35654775,2050.5,2049.9,1.43475011]
[1773129236723,1.35654775,2050.8,2050.1,1.43475011]
[1773129237424,1.35654775,2050.8,2050.3,1.43475011]
[1773129240624,1.35654775,2051.2,2050.5,1.43475011]
[1773129241724,1.35654775,2051.0,2050.5,1.43475011]
[1773129242927,1.35654775,2051.2,2050.6,1.43475011]
[1773129243228,1.35654775,2051.2,2050.8,1.43475011]
[1773129244425,1.39545888,2050.9,2050.1,3.26852092]
[1773129244629,1.39545888,2050.9,2050.2,1.36518766]
[1773129245225,1.39545888,2050.7,2050.2,1.36518766]
[1773129246129,1.39545888,2050.7,2050.0,1.36518766]
[1773129246731,1.39545888,2050.7,2050.1,1.90333326]
[1773129247034,1.39545888,2050.7,2050.2,1.36518766]
[1773129250435,1.39545888,2050.7,2050.0,1.36518766]
[1773129251241,1.39545888,2050.7,2050.2,1.36518766]
[1773129252939,1.39545888,2051.1,2050.6,1.36518766]
[1773129254541,1.39545888,2051.3,2050.6,1.36518766]
[1773129254938,1.39545888,2051.3,2050.4,1.36518766]
[1773129255943,1.39545888,2051.2,2050.4,1.36518766]
[1773129257740,1.39545888,2051.2,2050.3,1.36518766]
[1773129261840,1.39545888,2051.2,2050.0,6.08935782]
[1773129262047,1.39545888,2051.1,2050.1,1.36518766]
[1773129262540,1.39545888,2050.9,2050.1,1.36518766]
[1773129264047,1.39545888,2050.8,2050.1,1.36518766]
[1773129264948,1.39545888,2050.8,2049.9,1.36518766]
[1773129273746,1.39545888,2050.8,2050.0,1.37389175]
[1773129275453,1.43774775,2051.2,2050.1,6.08935782]
[1773129275753,1.43774775,2051.2,2050.3,1.37389175]
[1773129277149,1.43774775,2051.4,2050.4,1.37389175]
[1773129277749,1.43774775,2051.4,2050.5,1.37389175]
[1773129283654,1.43774775,2051.4,2050.6,1.37389175]
[1773129284657,1.43774775,2051.4,2050.8,1.37389175]
[1773129289655,1.40925343,2051.0,2050.4,1.34699633]
[1773129290059,1.40925343,2050.6,2050.2,1.34699633]
[1773129290360,1.40925343,2050.6,2050.1,1.34699633]
[1773129291667,1.40925343,2050.6,2049.8,1.34699633]
[1773129298268,1.40925343,2050.6,2049.7,0.00356002]
[1773129298269,3.37272082,2051.0,2050.2,7.43635415]
[1773129298566,1.40925343,2051.5,2050.4,0.85447427]
[1773129298866,1.40925343,2051.3,2050.4,0.85447427]
[1773129299166,3.84765343,2051.3,2050.4,0.85447427]
[1773129299367,1.40925343,2051.2,2050.4,0.85447427]
[1773129299868,1.40925343,2051.0,2050.4,0.85447427]
[1773129300469,1.40925343,2051.3,2050.4,0.85447427]
[1773129300669,1.40925343,2051.2,2050.4,0.85447427]
[1773129304373,1.39522024,2051.5,2050.4,0.85447427]
[1773129304569,1.39522024,2051.5,2050.5,0.7338041]
[1773129304870,1.40085141,2051.6,2050.7,0.7338041]
[1773129305067,1.39522024,2051.8,2050.9,0.73262995]
[1773129306273,1.39954647,2051.8,2050.9,0.73262995]
[1773129306468,1.39954647,2051.8,2051.0,0.72530336]
[1773129306864,1.39954647,2051.8,2051.1,0.72530336]
[1773129306865,0.00432623,2051.8,2051.1,0.72530336]
[1773129307076,1.39954647,2051.8,2051.1,0.72530336]
[1773129309079,1.39522024,2052.3,2051.2,0.72304315]
[1773129309283,1.39522024,2052.3,2051.4,0.72304315]
[1773129310183,1.40007509,2052.3,2051.6,0.72222608]
[1773129312076,0.00485485,2052.3,2051.6,0.72222608]
[1773129316379,1.39522024,2053.1,2051.8,0.61945231]
[1773129316580,1.39522024,2052.9,2051.8,0.61945231]
[1773129316780,1.39522024,2052.9,2052.0,0.61945231]
[1773129316981,3.83362024,2052.9,2052.0,0.61945231]
[1773129317177,1.39522024,2052.8,2052.0,0.61945231]
[1773129317979,2.4384,2052.7,2052.0,0.61945231]
[1773129318183,3.83362024,2052.7,2052.0,0.61945231]
[1773129320187,1.39522024,2052.5,2052.0,0.61945231]
[1773129320382,1.39522024,2052.8,2052.0,0.61945231]
[1773129320884,1.39522024,2052.6,2052.0,0.61945231]
[1773129321382,3.83362024,2052.6,2052.0,0.61945231]
[1773129322083,2.4384,2052.5,2052.0,0.61945231]
[1773129323083,1.39522024,2052.3,2051.8,0.55390363]
[1773129323283,1.39522024,2052.8,2051.8,0.55390363]
[1773129323686,3.83362024,2052.5,2051.8,0.55390363]
[1773129323885,1.39522024,2052.5,2051.8,0.55390363]
[1773129324186,2.4384,2052.4,2051.8,0.55390363]
[1773129324585,2.4384,2052.3,2051.8,0.55390363]
[1773129324784,1.39522024,2052.5,2051.8,0.55390363]
[1773129325084,3.83362024,2052.4,2051.8,0.55390363]
[1773129325290,1.39522024,2052.4,2051.8,0.55390363]
[1773129325692,3.83362024,2052.2,2051.8,0.55390363]
[1773129325988,1.39522024,2052.2,2051.8,0.55390363]
[1773129326191,3.83362024,2052.1,2051.8,0.55390363]
[1773129326387,1.39522024,2052.1,2051.8,0.56690097]
[1773129326581,1.39522024,2052.8,2051.8,0.56690097]
[1773129326786,1.39522024,2052.2,2051.8,0.56690097]
[1773129327082,1.39522024,2052.2,2051.7,14.5526022]
[1773129327287,3.83362024,2052.1,2051.7,14.5526022]
[1773129327487,1.39522024,2052.1,2051.8,0.00912819]
[1773129327688,2.4384,2052.0,2051.8,0.00912819]
[1773129327889,3.83362024,2052.0,2051.7,14.54212819]
[1773129328587,1.39522024,2052.0,2051.7,14.54212819]
[1773129328891,2.4384,2051.9,2051.7,18.5918772]
[1773129329586,1.87132754,2051.9,2051.7,18.5918772]
[1773129330190,1.39522024,2052.0,2051.7,18.5918772]
[1773129330391,1.87132754,2051.8,2051.7,14.533]
[1773129330592,1.40679529,2051.8,2051.7,14.533]
[1773129330791,0.95060802,2051.8,2051.7,14.533]
[1773129330992,0.49418207,2051.8,2051.7,14.533]
[1773129331290,1.2042721,2052.0,2051.7,18.73450616]
[1773129331690,1.2042721,2052.0,2051.7,18.58274901]
[1773129332189,1.2042721,2052.0,2051.4,18.75265496]
[1773129332390,1.2042721,2052.0,2051.5,0.14176197]
[1773129332687,1.2042721,2052.0,2051.4,18.60115174]
[1773129332892,1.2042721,2052.0,2051.1,20.77811979]
[1773129333293,1.2042721,2052.0,2051.2,0.67570658]
[1773129333895,1.2042721,2052.0,2051.2,0.67950867]
[1773129334290,1.2042721,2052.0,2051.2,6.76886649]
[1773129335894,1.2042721,2052.0,2051.2,6.09315991]
[1773129336096,1.2042721,2052.0,2051.2,0.00380209]
[1773129343906,1.2042721,2052.0,2050.9,21.25919857]
[1773129344202,1.2042721,2052.0,2050.9,14.568]
[1773129344494,1.2042721,2052.0,2050.9,15.16149733]
[1773129344899,1.2042721,2052.0,2050.9,15.16775474]
[1773129348199,1.2042721,2052.0,2051.0,0.56090603]
[1773129351508,1.2042721,2052.0,2050.9,0.55724792]
[1773129352511,0.24368,2051.7,2050.5,6.08935782]
[1773129352713,1.10984584,2051.4,2050.4,0.54967002]
[1773129353205,1.10984584,2051.4,2050.2,6.62845923]
[1773129353509,1.10984584,2051.4,2050.2,0.54504073]
[1773129353510,1.11544143,2051.4,2050.2,0.54504073]
[1773129354411,1.11544143,2051.4,2050.3,0.52459464]
[1773129359110,1.11544143,2051.4,2050.5,0.42318237]
[1773129361213,1.11544143,2051.4,2050.6,0.41004498]
[1773129362715,1.11544143,2051.4,2050.7,0.40350313]
[1773129364019,0.00559559,2051.4,2050.7,0.40350313]
[1773129364218,1.09477457,2051.4,2050.7,0.40350313]
[1773129364519,1.09477457,2051.4,2050.8,0.37270208]
[1773129365417,1.09477457,2051.4,2050.9,0.35525512]
[1773129368421,0.00559559,2051.4,2050.9,0.35525512]
[1773129368723,0.00559559,2051.4,2050.9,6.44461294]
[1773129368918,1.09477457,2051.4,2050.8,6.41235149]
[1773129369216,1.09477457,2051.4,2050.7,6.3944843]
[1773129369418,1.09477457,2051.4,2050.8,6.08935782]
[1773129369615,1.09477457,2051.4,2050.8,6.38860689]
[1773129369815,1.09477457,2051.4,2050.7,6.08935782]
[1773129370021,1.09477457,2051.4,2050.5,6.38860689]
[1773129370222,1.09477457,2051.4,2050.6,0.29929501]
[1773129372721,1.09477457,2051.4,2050.5,6.35562224]
[1773129373224,1.09477457,2051.4,2050.5,6.08935782]
[1773129373925,1.09477457,2051.4,2050.5,6.33729393]
[1773129374321,1.09477457,2051.4,2050.5,6.08935782]
[1773129374620,1.09477457,2051.4,2050.4,6.08935782]
[1773129375223,1.09477457,2051.4,2050.4,6.33062578]
[1773129375821,1.09477457,2051.4,2050.4,6.08935782]
[1773129376122,1.08917898,2051.2,2050.2,0.00593932]
[1773129377328,1.08917898,2051.2,2050.2,0.23066788]
[1773129381528,1.08917898,2051.1,2049.8,7.58725752]
[1773129381724,1.08917898,2050.3,2049.6,1.07698651]
[1773129382525,1.08917898,2050.3,2049.6,1.08259378]
[1773129386824,1.08917898,2050.3,2049.2,1.07698651]
[1773129387125,1.08917898,2050.0,2049.2,1.07698651]
[1773129387720,1.08917898,2050.0,2048.7,7.58725752]
[1773129387721,1.08917898,2050.0,2048.8,1.07698651]
[1773129387928,1.08917898,2049.7,2048.8,1.0816453]
[1773129388126,1.09369611,2049.7,2048.8,0.00465879]
[1773129391031,1.08917898,2049.4,2048.8,0.00465879]
[1773129392028,1.08917898,2049.4,2048.5,1.07698651]
[1773129393025,1.08917898,2049.4,2048.5,1.08320806]
[1773129394734,1.08917898,2049.4,2048.0,0.93541969]
[1773129395035,1.00689719,2049.0,2048.0,0.93541969]
[1773129395930,1.00689719,2049.0,2048.0,0.94116378]
[1773129406344,1.00689719,2049.1,2048.2,0.93541969]
[1773129406545,1.00689719,2049.6,2048.3,0.93541969]
[1773129406746,1.00689719,2049.6,2048.5,0.93541969]
[1773129410151,1.00689719,2049.5,2048.1,0.93541969]
[1773129411048,1.25084719,2049.5,2048.1,0.93541969]
[1773129411347,1.00689719,2049.5,2048.3,0.88527724]
[1773129412151,1.00689719,2049.5,2048.5,0.88527724]
[1773129416756,0.88737879,2049.3,2048.5,0.88527724]
[1773129416951,0.88737879,2049.3,2048.3,0.88527724]
[1773129417954,0.88737879,2049.1,2048.2,0.88527724]
[1773129420456,0.88737879,2048.9,2048.2,0.88527724]
[1773129420759,0.88737879,2049.2,2048.2,0.88527724]
[1773129420961,4.07455906,2049.3,2048.2,0.88527724]
[1773129420962,0.88737879,2049.0,2048.2,0.88527724]
[1773129421861,0.88737879,2049.3,2048.3,0.88527724]
[1773129424561,0.88737879,2049.3,2048.5,0.83113075]
[1773129424759,0.85580094,2049.4,2048.5,0.83113075]
[1773129428262,0.85580094,2049.6,2048.5,0.83113075]
[1773129433873,0.85580094,2049.6,2048.7,0.83113075]
[1773129436061,0.85580094,2049.6,2048.5,6.95003945]
[1773129436259,0.24394,2049.5,2048.5,6.95003945]
[1773129436469,0.85580094,2049.4,2048.5,0.83113075]
[1773129439668,0.85580094,2049.4,2048.4,0.83113075]
[1773129443976,0.85580094,2049.4,2048.5,0.83113075]
[1773129447177,0.85580094,2049.4,2048.6,0.83113075]
[1773129448279,0.85580094,2049.4,2048.7,0.83113075]
[1773129454278,0.85580094,2049.4,2048.8,0.79228858]
[1773129454786,0.82310454,2049.6,2048.9,0.79228858]
[1773129455384,0.82310454,2049.6,2048.8,0.79228858]
[1773129456284,0.82310454,2049.6,2048.6,6.1189087]
[1773129456786,0.82310454,2049.6,2048.7,0.79228858]
[1773129460490,0.82310454,2049.5,2048.7,0.79228858]
[1773129460690,0.82310454,2049.5,2048.5,20.3919087]
[1773129461190,0.82310454,2049.5,2048.5,21.18419728]
[1773129461390,0.82310454,2049.5,2048.6,0.79228858]
[1773129462190,0.82310454,2049.5,2048.5,21.18419728]
[1773129462490,0.82310454,2049.5,2048.5,6.1189087]
[1773129462991,0.24396,2049.4,2048.5,6.1189087]
[1773129463190,0.82310454,2049.3,2048.5,6.1189087]
[1773129463988,0.82310454,2049.3,2048.5,6.91119728]
[1773129464685,0.82310454,2049.3,2048.5,6.1189087]
[1773129465290,0.82310454,2049.3,2048.4,6.91119728]
[1773129467686,0.82310454,2049.3,2048.5,0.79228858]
[1773129468590,0.82310454,2049.3,2048.4,6.1189087]
[1773129468988,0.82310454,2049.3,2048.4,6.90473832]
[1773129469487,0.82310454,2049.3,2048.5,0.78582962]
[1773129471199,0.74483774,2049.2,2048.3,0.78582962]
[1773129475194,0.74483774,2049.2,2048.4,0.78582962]
[1773129476293,0.74483774,2049.2,2048.5,0.78582962]
[1773129477698,0.74483774,2049.5,2048.5,6.1189087]
[1773129477897,0.74483774,2049.5,2048.6,0.78582962]
[1773129479699,0.74483774,2049.5,2048.7,0.78582962]
[1773129480500,0.74483774,2049.5,2048.8,0.78582962]
[1773129481598,0.74483774,2049.6,2048.9,0.78582962]
[1773129481902,8.00235487,2049.7,2048.9,0.78582962]
[1773129482202,2.6494028,2049.6,2048.9,0.78582962]
[1773129482398,0.74483774,2049.5,2048.9,0.78582962]
[1773129482600,0.74483774,2049.3,2048.7,6.90473832]
[1773129482800,0.74483774,2049.1,2048.7,6.90473832]
[1773129483004,0.74483774,2049.1,2048.7,0.78582962]
[1773129484699,2.64618406,2049.2,2048.7,0.78582962]
[1773129485904,0.741619,2049.1,2048.7,0.78582962]
[1773129487298,0.741619,2049.1,2048.5,6.6131878]
[1773129487705,0.741619,2049.1,2048.6,0.4942791]
[1773129489006,0.741619,2049.3,2048.6,0.4942791]
[1773129491199,0.741619,2048.9,2048.6,0.50353656]
[1773129491401,2.64618406,2049.0,2048.6,0.50353656]
[1773129491804,2.64618406,2049.4,2048.7,0.50086557]
[1773129492006,0.741619,2049.4,2048.7,0.50086557]
[1773129492208,0.741619,2049.3,2048.7,0.50086557]
[1773129494006,1.90456506,2049.2,2048.7,0.50086557]
[1773129494213,0.741619,2049.1,2048.6,0.49809528]
[1773129494615,0.741619,2048.9,2048.5,0.49535419]
[1773129495819,0.741619,2049.4,2048.5,0.49535419]
[1773129500218,0.741619,2049.4,2048.6,0.46524619]
[1773129504125,0.741619,2049.4,2048.7,0.45247737]
[1773129504319,0.741619,2049.4,2048.6,6.1189087]
[1773129504523,0.741619,2049.4,2048.6,6.56894539]
[1773129504821,0.741619,2049.4,2048.7,0.45003669]
[1773129512332,0.741619,2049.4,2048.6,6.56555759]
[1773129512828,0.741619,2049.4,2048.6,0.44664889]
[1773129514831,0.741619,2049.4,2048.7,0.4440353]
[1773129515933,0.741619,2049.4,2048.9,0.44288716]
[1773129517233,0.741619,2049.4,2048.8,0.44088063]
[1773129518026,0.69239973,2049.2,2048.7,6.55683737]
[1773129518630,0.69239973,2049.2,2048.7,6.55488563]
[1773129518832,0.69239973,2049.2,2048.6,6.55488563]
[1773129519933,0.69239973,2049.2,2048.7,0.43223978]
[1773129521335,0.69239973,2049.4,2048.7,0.43223978]
[1773129521538,0.69239973,2049.4,2048.9,0.43629024]
[1773129523237,0.69239973,2049.6,2049.1,0.43605077]
[1773129523637,0.69239973,2049.5,2049.1,0.43605077]
[1773129523839,0.69239973,2049.5,2048.9,0.43411589]
[1773129527935,0.00451713,2049.7,2048.8,6.58854845]
[1773129527936,0.69239973,2049.3,2048.8,6.58854845]
[1773129528135,0.69239973,2049.3,2048.8,0.46963975]
[1773129528637,0.69239973,2049.3,2048.8,6.58854845]
[1773129529240,0.69239973,2049.3,2048.9,0.46720735]
[1773129533043,0.69239973,2049.3,2048.9,0.47142698]
[1773129533537,0.69239973,2049.3,2048.8,6.58691055]
[1773129533741,0.69239973,2049.3,2048.8,0.46800185]
[1773129534040,0.69239973,2049.3,2048.7,20.3669087]
[1773129534241,0.69239973,2049.3,2048.7,20.83491977]
[1773129534435,0.69239973,2049.3,2048.8,0.466325]
[1773129534838,0.69239973,2049.3,2048.7,6.5852337]
[1773129535042,0.69239973,2049.3,2048.7,20.8462337]
[1773129535338,0.69239973,2049.3,2048.7,20.3799087]
[1773129535543,0.69239973,2049.3,2048.8,0.47117661]
[1773129538145,0.69239973,2049.3,2048.7,20.3799087]
[1773129538444,0.69239973,2049.3,2048.7,14.261]
[1773129538640,0.69239973,2049.3,2048.7,14.73502536]
[1773129540043,0.66524298,2049.1,2048.7,0.47238302]
[1773129540446,0.66524298,2049.2,2048.7,0.47238302]
[1773129540741,0.66524298,2049.5,2048.9,0.47080372]
[1773129542845,0.66524298,2049.5,2048.8,20.4119087]
[1773129543447,0.66524298,2049.5,2048.8,20.87905687]
[1773129543647,0.66524298,2049.5,2048.8,14.76014817]
[1773129543947,0.6735408,2049.4,2048.8,14.293]
[1773129545643,0.6735408,2049.4,2048.8,14.74742886]
[1773129545845,0.6735408,2049.4,2048.7,0.45442886]
[1773129546251,0.6735408,2049.4,2048.8,0.45443014]
[1773129547452,0.6735408,2049.4,2048.9,0.45196594]
[1773129549150,0.6735408,2049.6,2048.9,0.45196594]
[1773129549949,0.6735408,2049.6,2049.2,0.45260571]
[1773129550149,0.67805793,2049.7,2049.2,0.45260571]
[1773129550451,0.67805793,2049.7,2049.0,0.91251441]
[1773129551448,4.0896733,2050.3,2049.1,0.65324721]
[1773129551651,0.70613162,2050.1,2049.1,0.65324721]
[1773129552253,0.70613162,2050.1,2049.3,0.648676]
[1773129552456,0.70984981,2050.1,2049.3,0.648676]
[1773129554056,0.00371819,2050.1,2049.4,0.62323393]
[1773129559058,0.72394132,2050.1,2049.4,0.62323393]
[1773129561755,5.99473638,2050.8,2049.4,0.62323393]
[1773129562057,0.72184736,2050.6,2049.5,0.5469904]
[1773129562859,0.72580737,2050.6,2049.5,0.55228194]
[1773129565057,0.7246897,2050.6,2049.8,0.52253471]
[1773129565253,0.7246897,2050.6,2049.9,0.52253471]
[1773129565454,0.72391245,2050.5,2049.6,0.5157354]
[1773129565760,0.72391245,2050.2,2049.5,0.52102694]
[1773129578678,0.72391245,2050.2,2049.6,0.41482648]
[1773129579973,0.72391245,2050.2,2049.5,0.00529154]
[1773129580276,0.72391245,2050.2,2049.5,0.412383]
[1773129583484,0.9537516,2050.3,2049.5,0.412383]
[1773129583784,0.9537516,2050.2,2049.5,0.412383]
[1773129587784,3.469,2050.5,2049.7,0.36159658]
[1773129587785,0.9537516,2050.4,2049.7,0.36159658]
[1773129588683,3.469,2050.5,2049.7,0.36159658]
[1773129588890,0.87649297,2050.6,2049.9,0.35391243]
[1773129589588,0.87649297,2050.6,2050.1,0.34638919]
[1773129590388,0.87253296,2051.2,2050.3,0.88908852]
[1773129591487,0.87608878,2051.2,2050.3,0.88908852]
[1773129600189,0.87608878,2051.2,2050.0,14.50889]
[1773129600190,0.87608878,2051.2,2050.6,0.88908852]
[1773129600496,0.87253296,2051.3,2050.7,0.88908852]
[1773129600692,0.87253296,2052.0,2050.9,0.88908852]
[1773129601394,0.87663301,2052.0,2050.9,0.88908852]
[1773129601897,0.87663301,2052.0,2051.1,0.88908852]
[1773129602092,0.87663301,2052.0,2051.1,0.89320913]
[1773129602401,0.87663301,2052.0,2051.3,0.88908852]
[1773129602402,0.00410005,2052.0,2051.3,0.88908852]
[1773129602797,0.87663301,2052.0,2051.3,0.88908852]
[1773129603996,0.91176183,2052.0,2051.3,0.88908852]
[1773129604497,0.91176183,2052.0,2051.1,0.00412061]
[1773129604498,0.91176183,2052.0,2051.1,0.91062798]
[1773129605291,0.91176183,2052.0,2051.2,0.90650737]
[1773129605997,0.00410005,2052.0,2051.2,0.90650737]
[1773129606397,0.00410005,2052.0,2051.4,0.90650737]
[1773129606697,0.90766178,2052.3,2051.4,0.90650737]
[1773129606996,0.90766178,2052.3,2051.2,0.90650737]
[1773129607196,0.90766178,2052.3,2051.3,0.90650737]
[1773129607497,0.91325016,2052.3,2051.3,0.90650737]
[1773129607699,0.91325016,2052.3,2051.5,0.90650737]
[1773129607998,0.00558838,2052.3,2051.5,0.90650737]
[1773129608198,0.91325016,2052.3,2051.5,0.90650737]
[1773129608802,0.00558838,2052.3,2051.5,0.90650737]
[1773129609297,0.90766178,2052.7,2051.7,0.90650737]
[1773129609997,0.90766178,2052.7,2051.9,0.90650737]
[1773129610191,0.90766178,2053.7,2052.1,0.90650737]
[1773129610394,0.91163077,2053.7,2052.1,0.90650737]
[1773129611799,5.78963077,2053.7,2052.1,0.90650737]
[1773129612001,0.90766178,2053.6,2052.3,0.90650737]
[1773129612698,0.90766178,2053.6,2052.5,0.90650737]
[1773129612899,0.90766178,2053.6,2052.6,0.90650737]
[1773129613099,0.90766178,2053.6,2052.6,0.91045615]
[1773129615401,0.90766178,2053.6,2052.6,0.00394878]
[1773129616104,0.90766178,2053.6,2051.7,0.24367]
[1773129616105,0.90766178,2053.4,2052.0,0.90650737]
[1773129617006,0.90766178,2053.4,2052.0,0.91060006]
[1773129617701,0.90766178,2053.4,2052.0,0.00409269]
[1773129617907,0.90766178,2053.4,2052.0,0.91060006]
[1773129618710,0.90766178,2053.0,2052.0,0.00409269]
[1773129619004,0.90766178,2053.0,2052.0,0.91060006]
[1773129621607,0.90766178,2053.1,2052.3,0.90650737]
[1773129623612,0.90766178,2054.4,2053.4,0.90650737]
[1773129624512,0.90766178,2055.4,2053.4,0.90650737]
[1773129624711,0.91218058,2055.4,2053.4,0.90650737]
[1773129625414,0.90766178,2055.1,2053.6,0.90650737]
[1773129625615,0.90766178,2055.1,2053.6,0.91147208]
[1773129625810,0.90766178,2055.0,2053.6,0.91147208]
[1773129626512,5.9854,2054.9,2053.6,0.91147208]
[1773129626717,0.90766178,2054.7,2053.6,0.91147208]
[1773129627418,0.90766178,2054.5,2052.4,0.90650737]
[1773129627717,0.90766178,2054.3,2052.7,0.24356]
[1773129627915,0.90766178,2054.3,2052.8,0.90650737]
[1773129628415,0.90766178,2054.3,2052.8,0.9121907]
[1773129629216,0.90766178,2054.3,2053.0,0.90650737]
[1773129629417,0.90766178,2054.3,2053.2,0.90650737]
[1773129634119,0.90766178,2054.3,2052.9,0.81456124]